lending/lending_fUSD_20240809
["ID","MTS","AMOUNT","RATE_DAILY","PERIOD"]
[334494679,1723167054225,-768.362139,0.00024499,5]
[334494680,1723167054236,-510.66,0.00024499,5]
[334494681,1723167054248,-510.66,0.00024499,5]
[334494682,1723167054257,-510.84,0.00024499,5]
[334494683,1723167054267,-1032.78,0.00024499,5]
[334494684,1723167054276,-1032.78,0.00024499,5]
[334494685,1723167054286,-1032.78,0.00024499,5]
[334494686,1723167054296,-1032.78,0.00024499,5]
[334494687,1723167054306,-1032.78,0.00024499,5]
[334494688,1723167054317,-1032.78,0.00024499,5]
[334494689,1723167054327,-1032.78,0.00024499,5]
[334494690,1723167054337,-1032.78,0.00024499,5]
[334494691,1723167054347,-1032.78,0.00024499,5]
[334494692,1723167054356,-1032.78,0.00024499,5]
[334494693,1723167054366,-1032.78,0.00024499,5]
[334494694,1723167054376,-1032.78,0.00024499,5]
[334494695,1723167054386,-500.0,0.00024499,5]
[334494696,1723167054396,-1032.78,0.00024499,5]
[334494697,1723167054406,-1032.78,0.00024499,5]
[334494698,1723167054416,-500.0,0.00024499,5]
[334494699,1723167054426,-1032.78,0.00024499,5]
[334494700,1723167054436,-500.0,0.00024499,5]
[334494701,1723167054445,-1032.78110987,0.00024499,5]
[334494702,1723167054459,-500.0,0.00024499,5]
[334494703,1723167054469,-500.0,0.00024499,5]
[334494704,1723167054478,-297.93604668,0.00024499,5]
[334494705,1723167054489,-500.0,0.00024499,5]
[334494706,1723167054499,-500.0,0.00024499,5]
[334494707,1723167054509,-500.0,0.00024499,5]
[334494708,1723167054519,-13527.99,0.00024499,5]
[334494709,1723167054529,-500.0,0.00024499,5]
[334494710,1723167054539,-13527.99,0.00024499,5]
[334494711,1723167054549,-500.0,0.00024499,5]
[334494712,1723167054559,-13527.99,0.00024499,5]
[334494713,1723167054569,-500.0,0.00024499,5]
[334494714,1723167054579,-13527.99,0.00024499,5]
[334494715,1723167054589,-554.4165474,0.00024499,5]
[334494716,1723167054599,-13527.99,0.00024499,5]
[334494717,1723167054609,-13527.99,0.00024499,5]
[334494718,1723167054619,-13527.99,0.00024499,5]
[334494719,1723167054629,-13527.99,0.00024499,5]
[334494720,1723167054639,-13527.99,0.00024499,5]
[334494721,1723167054649,-13527.99,0.00024499,5]
[334494722,1723167054660,-13527.99,0.00024499,5]
[334494723,1723167054670,-13527.99,0.00024499,5]
[334494724,1723167054680,-13527.99,0.00024499,5]
[334494725,1723167054690,-13527.99,0.00024499,5]
[334494726,1723167054700,-13527.99,0.00024499,5]
[334494727,1723167054712,-2800.4237897,0.00024499,5]
[334494753,1723167787936,208.9,0.00025,60]
[334494772,1723168231773,-550.0,0.00013,2]
[334494774,1723168231783,-154.42,0.00013973,2]
[334494776,1723168231792,-345.58000188,0.00015,2]
[334494806,1723168232022,-254.41999812,0.00015,2]
[334494807,1723168232032,-93.04147804,0.00017,2]
[334494808,1723168232044,-556.95852196,0.00017,2]
[334494818,1723168232213,-242.31,0.00019974,2]
[334494820,1723168232223,-499.99,0.00019974,2]
[334494822,1723168232235,-622.0,0.000202,3]
[334494823,1723168232244,-496.6500837,0.0002038,2]
[334494824,1723168232254,-2515.48260036,0.00021837,2]
[334494825,1723168232265,-192.36739964,0.00021837,2]
[334494827,1723168232275,-250.0,0.00021919,2]
[334494828,1723168232284,-3971.36716296,0.00022021,2]
[334494830,1723168232296,-4950.35413857,0.00022021,2]
[334494832,1723168232308,-2821.80314251,0.00022021,2]
[334494834,1723168232320,-4252.37643937,0.00022021,2]
[334494836,1723168232333,-300.0,0.00022021,2]
[334494838,1723168232345,-997.00916121,0.00022021,2]
[334494840,1723168232356,-6607.08995538,0.00022021,2]
[334494842,1723168232366,-150.84602501,0.00022044,2]
[334494843,1723168232375,-242.31,0.00022237,2]
[334494844,1723168232384,-390.4,0.00022439,2]
[334494845,1723168232393,-150.0,0.00022603,2]
[334494846,1723168232403,-233.1,0.0002263,2]
[334494847,1723168232412,-465.42790422,0.00022727,2]
[334494848,1723168232423,-290.02118712,0.00022727,2]
[334494849,1723168232434,-510.45835983,0.00022727,2]
[334494850,1723168232445,-641.02,0.00022727,2]
[334494855,1723168237881,-3101.29254883,0.00022727,2]
[334494857,1723168237891,-200.0,0.00023,2]
[334494859,1723168237901,-175.49,0.00023012,2]
[334494861,1723168237910,-7856.93,0.00023012,2]
[334494863,1723168237919,-609.6,0.00023086,2]
[334494865,1723168237928,-400.66578761,0.00023199,2]
[334494867,1723168237937,-24533.09594182,0.00023286,4]
[334494869,1723168237947,-171.52,0.00023314,2]
[334494871,1723168237956,-250.0,0.00023441,2]
[334494872,1723168237965,-170.25,0.0002349,2]
[334494873,1723168237974,-259.8033,0.000237,2]
[334494874,1723168237984,-3783.2497,0.000237,2]
[334494875,1723168237993,-165498.91894199,0.000238,2]
[334494876,1723168238003,-155.09430814,0.00023873,2]
[334494877,1723168238012,-2018.44,0.00024,2]
[334494878,1723168238022,-1004.0,0.00024,2]
[334494879,1723168238031,-273.19450646,0.00024123,5]
[334494880,1723168238040,-332.22645824,0.00024123,5]
[334494881,1723168238049,-500.0,0.00024123,5]
[334494882,1723168238058,-589.74,0.00024123,5]
[334494883,1723168238067,-1928.84,0.00024123,5]
[334494884,1723168238076,-500.0,0.00024123,5]
[334494885,1723168238085,-4143.72,0.00024123,5]
[334494886,1723168238094,-3275.82,0.00024123,5]
[334494887,1723168238103,-1601.81,0.00024123,5]
[334494888,1723168238112,-1174.37,0.00024123,5]
[334494889,1723168238121,-3349.24,0.00024123,5]
[334494890,1723168238131,-155.0,0.00024124,2]
[334494891,1723168238139,-155.0,0.00024124,2]
[334494892,1723168238148,-1978.8771187,0.00024124,2]
[334494893,1723168238158,-623.47962326,0.00024133,2]
[334494894,1723168238167,-1000.0,0.000242,2]
[334494895,1723168238176,-213.2298,0.000242,2]
[334494896,1723168238185,-325.72924417,0.00024274,2]
[334494897,1723168238194,-501.93613792,0.00024284,2]
[334494898,1723168238203,-500.0,0.00024284,5]
[334494899,1723168238212,-501.58090697,0.00024284,5]
[334494900,1723168238221,-502.57074597,0.00024284,5]
[334494901,1723168238231,-500.93261375,0.00024284,5]
[334494902,1723168238241,-501.97014009,0.00024284,5]
[334494903,1723168238250,-500.0,0.00024284,5]
[334494904,1723168238260,-500.0,0.00024284,5]
[334494905,1723168238270,-500.0,0.00024284,5]
[334494906,1723168238279,-500.0,0.00024284,5]
[334494907,1723168238289,-500.0,0.00024284,5]
[334494908,1723168238298,-501.88785981,0.00024284,5]
[334494909,1723168238307,-502.4735235,0.00024284,5]
[334494910,1723168238316,-502.55685101,0.00024284,5]
[334494911,1723168238325,-500.83464639,0.00024284,5]
[334494912,1723168238336,-502.87616373,0.00024284,5]
[334494913,1723168238346,-504.00770158,0.00024284,5]
[334494914,1723168238356,-503.74975568,0.00024284,5]
[334494915,1723168238365,-501.96876183,0.00024284,5]
[334494916,1723168238374,-500.0,0.00024284,5]
[334494917,1723168238384,-500.0,0.00024284,5]
[334494918,1723168238393,-500.0,0.00024284,5]
[334494919,1723168238402,-572.29687016,0.00024284,5]
[334494920,1723168238411,-503.09005393,0.00024284,5]
[334494921,1723168238421,-500.0,0.00024284,5]
[334494922,1723168238430,-500.0,0.00024284,5]
[334494923,1723168238439,-501.67225411,0.00024284,5]
[334494924,1723168238448,-521.44752477,0.00024284,5]
[334494925,1723168238458,-500.51225277,0.00024284,5]
[334494926,1723168238467,-503.84575083,0.00024284,5]
[334494927,1723168238476,-500.0,0.00024284,5]
[334494928,1723168238485,-502.39662422,0.00024284,5]
[334494929,1723168238494,-500.0,0.00024284,5]
[334494930,1723168238503,-502.69474909,0.00024284,5]
[334494931,1723168238512,-501.51510953,0.00024284,5]
[334494932,1723168238521,-501.12456,0.00024284,5]
[334494933,1723168238530,-504.40745778,0.00024284,5]
[334494934,1723168238539,-502.40830451,0.00024284,5]
[334494935,1723168238549,-500.0,0.00024284,5]
[334494937,1723168238558,-503.74536022,0.00024284,5]
[334494939,1723168238567,-500.0,0.00024284,5]
[334494941,1723168238576,-501.79875928,0.00024284,5]
[334494943,1723168238585,-501.65274779,0.00024284,5]
[334494945,1723168238594,-501.11831591,0.00024284,5]
[334494947,1723168238604,-501.67815392,0.00024284,5]
[334494949,1723168238613,-520.53895364,0.00024284,5]
[334494951,1723168238623,-646.56334659,0.00024284,5]
[334494953,1723168238633,-501.99982579,0.00024284,5]
[334494955,1723168238644,-500.35430088,0.00024284,5]
[334494957,1723168238653,-500.0,0.00024284,5]
[334494959,1723168238662,-501.87694496,0.00024284,5]
[334494960,1723168238671,-500.0,0.00024284,5]
[334494962,1723168238682,-500.99941675,0.00024284,5]
[334494964,1723168238691,-501.64006339,0.00024284,5]
[334494966,1723168238701,-500.0,0.00024284,5]
[334494968,1723168238712,-501.78018718,0.00024284,5]
[334494970,1723168238722,-500.0,0.00024284,5]
[334494972,1723168238731,-501.47946128,0.00024284,5]
[334494973,1723168238741,-503.70598733,0.00024284,5]
[334494974,1723168238750,-501.73947684,0.00024284,5]
[334494975,1723168238760,-500.95353636,0.00024284,5]
[334494976,1723168238769,-502.84594533,0.00024284,5]
[334494977,1723168238778,-518.206641,0.00024284,5]
[334494978,1723168238787,-500.0,0.00024284,5]
[334494979,1723168238797,-501.71165724,0.00024284,5]
[334494980,1723168238806,-500.0,0.00024284,5]
[334494981,1723168238815,-627.27395145,0.00024284,5]
[334494982,1723168238824,-504.13523515,0.00024284,5]
[334494983,1723168238834,-502.78131209,0.00024284,5]
[334494984,1723168238843,-500.0,0.00024284,5]
[334494985,1723168238852,-500.0,0.00024284,5]
[334494986,1723168238861,-510.20192119,0.00024284,5]
[334494987,1723168238871,-500.38571323,0.00024284,5]
[334494988,1723168238880,-310.28145665,0.00024284,5]
[334494989,1723168238890,-569.39508262,0.00024284,5]
[334494990,1723168238899,-500.98415948,0.00024284,5]
[334494991,1723168238908,-500.15390822,0.00024284,5]
[334494992,1723168238917,-500.67993896,0.00024284,5]
[334494993,1723168238926,-500.58896655,0.00024284,5]
[334494994,1723168238935,-500.12893017,0.00024284,5]
[334494995,1723168238944,-502.13947437,0.00024284,5]
[334494996,1723168238954,-587.20684487,0.00024284,5]
[334494997,1723168238963,-500.93564666,0.00024284,5]
[334494998,1723168238971,-501.38951264,0.00024284,5]
[334494999,1723168238980,-186.20056192,0.00024284,5]
[334495000,1723168238991,-186.27171464,0.00024284,5]
[334495001,1723168239001,-502.25651859,0.00024284,5]
[334495002,1723168239010,-500.0,0.00024284,5]
[334495003,1723168239019,-500.41692966,0.00024284,5]
[334495004,1723168239028,-500.51858374,0.00024284,5]
[334495005,1723168239037,-265.03891056,0.00024284,5]
[334495006,1723168239046,-613.80148434,0.00024284,5]
[334495007,1723168239055,-306.86253964,0.00024284,5]
[334495008,1723168239064,-500.41295974,0.00024284,5]
[334495009,1723168239073,-306.76882246,0.00024284,5]
[334495010,1723168239082,-621.72539,0.00024284,5]
[334495011,1723168239091,-201.40111873,0.00024284,5]
[334495012,1723168239101,-500.26959861,0.00024284,5]
[334495013,1723168239109,-501.30450742,0.00024284,5]
[334495014,1723168239118,-202.34891167,0.00024284,5]
[334495015,1723168239127,-500.90585909,0.00024284,5]
[334495019,1723168239136,-501.00228993,0.00024284,5]
[334495021,1723168239277,-500.95081221,0.00024284,5]
[334495023,1723168239286,-502.56562801,0.00024284,5]
[334495025,1723168239296,-162.614751,0.00024284,5]
[334495027,1723168239305,-500.0,0.00024284,5]
[334495029,1723168239315,-500.0,0.00024286,5]
[334495031,1723168239324,-500.0,0.00024286,5]
[334495033,1723168239333,-293.17818229,0.00024286,5]
[334495035,1723168239342,-500.0,0.00024286,5]
[334495037,1723168239351,-345.70247069,0.00024286,5]
[334495039,1723168239360,-210.15951402,0.00024286,5]
[334495041,1723168239369,-500.0,0.00024286,5]
[334495043,1723168239379,-365.0136303,0.00024286,5]
[334495045,1723168239388,-500.0,0.00024286,5]
[334495047,1723168239397,-500.0,0.00024286,5]
[334495049,1723168239407,-471.71632916,0.00024286,5]
[334495051,1723168239416,-587.35310098,0.00024286,5]
[334495053,1723168239425,-500.0,0.00024286,5]
[334495055,1723168239434,-500.0,0.00024286,5]
[334495057,1723168239444,-411.8539633,0.00024286,5]
[334495059,1723168239453,-533.70057747,0.00024286,5]
[334495061,1723168239463,-298.61651966,0.00024286,5]
[334495063,1723168239472,-500.0,0.00024286,5]
[334495065,1723168239481,-500.0,0.00024286,5]
[334495066,1723168239491,-440.52171999,0.00024286,5]
[334495068,1723168239501,-459.97620574,0.00024286,5]
[334495070,1723168239510,-500.0,0.00024286,5]
[334495072,1723168239519,-442.97744895,0.00024286,5]
[334495074,1723168239528,-335.28436686,0.00024286,5]
[334495076,1723168239537,-6973.02,0.00024286,2]
[334495078,1723168239547,-512.95001285,0.00024286,5]
[334495080,1723168239556,-16877.28559332,0.00024298,2]
[334495082,1723168239565,-167.2512,0.000243,2]
[334495084,1723168239574,-604.908,0.0002435,2]
[334495086,1723168239583,-447.111,0.0002435,2]
[334495088,1723168239592,-150.0,0.0002435,2]
[334495090,1723168239601,-1214.399,0.0002435,2]
[334495092,1723168239611,-1675.365,0.0002435,2]
[334495094,1723168239619,-21743.0,0.0002435,2]
[334495096,1723168239632,-155.6,0.00024389,2]
[334495098,1723168239641,-1000.0,0.0002439,2]
[334495100,1723168239650,-666.45606318,0.00024396,2]
[334495102,1723168239660,-500.0,0.00024398,5]
[334495104,1723168239670,-500.0,0.00024398,5]
[334495106,1723168239679,-500.0,0.00024398,5]
[334495108,1723168239688,-500.0,0.00024398,5]
[334495110,1723168239698,-670.11,0.00024398,5]
[334495112,1723168239709,-500.0,0.00024398,5]
[334495114,1723168239719,-500.0,0.00024398,5]
[334495116,1723168239728,-500.0,0.00024398,5]
[334495118,1723168239739,-500.0,0.00024398,5]
[334495120,1723168239748,-500.0,0.00024398,5]
[334495122,1723168239757,-500.0,0.00024398,5]
[334495124,1723168239766,-500.0,0.00024398,5]
[334495126,1723168239775,-500.0,0.00024398,5]
[334495128,1723168239785,-728.65,0.00024398,5]
[334495130,1723168239795,-500.0,0.00024398,5]
[334495132,1723168239804,-500.0,0.00024398,5]
[334495134,1723168239814,-1036.16,0.00024398,5]
[334495136,1723168239823,-500.0,0.00024398,5]
[334495138,1723168239832,-500.0,0.00024398,5]
[334495140,1723168239841,-500.0,0.00024398,5]
[334495142,1723168239850,-500.0,0.00024398,5]
[334495143,1723168239859,-500.0,0.00024398,5]
[334495145,1723168239868,-500.0,0.00024398,5]
[334495147,1723168239877,-500.0,0.00024398,5]
[334495149,1723168239886,-674.04,0.00024398,5]
[334495151,1723168239895,-500.0,0.00024398,5]
[334495153,1723168239904,-514.91,0.00024398,5]
[334495155,1723168239913,-887.25,0.00024398,5]
[334495157,1723168239922,-500.0,0.00024398,5]
[334495159,1723168239931,-500.0,0.00024398,5]
[334495161,1723168239940,-500.0,0.00024398,5]
[334495163,1723168239950,-500.0,0.00024398,5]
[334495165,1723168239959,-500.0,0.00024398,5]
[334495167,1723168239968,-500.0,0.00024398,5]
[334495169,1723168239977,-500.0,0.00024398,5]
[334495171,1723168239987,-1144.13,0.00024398,5]
[334495173,1723168239996,-500.0,0.00024398,5]
[334495175,1723168240006,-500.0,0.00024398,5]
[334495177,1723168240015,-1165.98,0.00024398,5]
[334495179,1723168240024,-500.0,0.00024398,5]
[334495181,1723168240033,-594.62,0.00024398,5]
[334495183,1723168240042,-500.0,0.00024398,5]
[334495185,1723168240051,-646.58,0.00024398,5]
[334495187,1723168240060,-500.0,0.00024398,5]
[334495188,1723168240069,-1052.39,0.00024398,5]
[334495190,1723168240078,-519.96,0.00024398,5]
[334495192,1723168240087,-500.0,0.00024398,5]
[334495194,1723168240096,-500.0,0.00024398,5]
[334495196,1723168240105,-500.0,0.00024398,5]
[334495198,1723168240115,-675.77,0.00024398,5]
[334495200,1723168240124,-500.0,0.00024398,5]
[334495202,1723168240134,-500.0,0.00024398,5]
[334495204,1723168240143,-500.0,0.00024398,5]
[334495206,1723168240152,-765.79,0.00024398,5]
[334495208,1723168240162,-527.73,0.00024398,5]
[334495210,1723168240171,-500.0,0.00024398,5]
[334495212,1723168240180,-500.0,0.00024398,5]
[334495214,1723168240190,-500.0,0.00024398,5]
[334495216,1723168240199,-500.0,0.00024398,5]
[334495218,1723168240208,-500.0,0.00024398,5]
[334495220,1723168240219,-500.0,0.00024398,5]
[334495222,1723168240228,-500.0,0.00024398,5]
[334495224,1723168240239,-500.0,0.00024398,5]
[334495226,1723168240255,-500.0,0.00024398,5]
[334495228,1723168240264,-500.0,0.00024398,5]
[334495230,1723168240273,-506.13233265,0.00024398,5]
[334495232,1723168240282,-753.49,0.00024398,5]
[334495234,1723168240291,-500.0,0.00024398,5]
[334495236,1723168240301,-500.0,0.00024398,5]
[334495238,1723168240310,-500.0,0.00024398,5]
[334495240,1723168240319,-1000.0,0.00024398,20]
[334495242,1723168240328,-500.0,0.00024398,5]
[334495244,1723168240338,-978.43,0.00024398,5]
[334495246,1723168240347,-500.0,0.00024398,5]
[334495248,1723168240357,-500.0,0.00024398,5]
[334495250,1723168240366,-500.0,0.00024398,5]
[334495252,1723168240375,-500.0,0.00024398,5]
[334495254,1723168240384,-500.0,0.00024398,5]
[334495255,1723168240393,-990.89,0.00024398,5]
[334495257,1723168240402,-500.0,0.00024398,5]
[334495259,1723168240411,-500.0,0.00024398,5]
[334495261,1723168240421,-500.0,0.00024398,5]
[334495263,1723168240430,-1737.31,0.00024398,5]
[334495265,1723168240439,-500.0,0.00024398,5]
[334495267,1723168240449,-500.0,0.00024398,5]
[334495269,1723168240458,-500.0,0.00024398,5]
[334495271,1723168240467,-500.0,0.00024398,5]
[334495273,1723168240476,-823.56,0.00024398,5]
[334495275,1723168240486,-500.0,0.00024398,5]
[334495277,1723168240495,-831.66,0.00024398,5]
[334495279,1723168240504,-500.0,0.00024398,5]
[334495281,1723168240513,-690.11,0.00024398,5]
[334495283,1723168240522,-500.0,0.00024398,5]
[334495285,1723168240532,-500.0,0.00024398,5]
[334495287,1723168240541,-500.0,0.00024398,5]
[334495289,1723168240551,-688.61,0.00024398,5]
[334495291,1723168240560,-500.0,0.00024398,5]
[334495293,1723168240569,-500.0,0.00024398,5]
[334495295,1723168240578,-500.0,0.00024398,5]
[334495297,1723168240587,-500.0,0.00024398,5]
[334495299,1723168240597,-500.0,0.00024398,5]
[334495301,1723168240606,-500.0,0.00024398,5]
[334495303,1723168240618,-500.0,0.00024398,5]
[334495305,1723168240630,-500.0,0.00024398,5]
[334495307,1723168240641,-660.81,0.00024398,5]
[334495309,1723168240651,-1410.9,0.00024398,5]
[334495311,1723168240661,-500.0,0.00024398,5]
[334495312,1723168240678,-577.33,0.00024398,5]
[334495314,1723168240687,-500.0,0.00024398,5]
[334495316,1723168240697,-500.0,0.00024398,5]
[334495318,1723168240707,-589.74,0.00024398,5]
[334495320,1723168240716,-557.18022961,0.00024398,5]
[334495322,1723168240726,-500.0,0.00024398,5]
[334495324,1723168240736,-500.0,0.00024398,5]
[334495326,1723168240752,-985.26,0.00024398,5]
[334495328,1723168240761,-500.0,0.00024398,5]
[334495330,1723168240770,-731.33,0.00024398,5]
[334495332,1723168240779,-510.20367855,0.00024398,5]
[334495334,1723168240788,-1458.27,0.00024398,5]
[334495336,1723168240797,-501.00063357,0.00024398,5]
[334495338,1723168240806,-500.0,0.00024398,5]
[334495340,1723168240815,-519.45,0.00024398,5]
[334495342,1723168240824,-500.0,0.00024398,5]
[334495344,1723168240834,-500.0,0.00024398,5]
[334495346,1723168240843,-1928.84,0.00024398,5]
[334495348,1723168240852,-500.0,0.00024398,5]
[334495350,1723168240861,-500.0,0.00024398,5]
[334495352,1723168240870,-500.0,0.00024398,5]
[334495354,1723168240879,-1089.79,0.00024398,5]
[334495355,1723168240889,-500.0,0.00024398,5]
[334495356,1723168240898,-743.86,0.00024398,5]
[334495357,1723168240907,-500.0,0.00024398,5]
[334495358,1723168240916,-4143.72,0.00024398,5]
[334495359,1723168240925,-977.41,0.00024398,5]
[334495360,1723168240934,-500.0,0.00024398,5]
[334495361,1723168240943,-3275.82,0.00024398,5]
[334495362,1723168240953,-500.0,0.00024398,5]
[334495363,1723168240962,-500.0,0.00024398,5]
[334495364,1723168240971,-1601.81,0.00024398,5]
[334495365,1723168240981,-566.13,0.00024398,5]
[334495366,1723168240992,-710.65,0.00024398,5]
[334495367,1723168241001,-500.0,0.00024398,5]
[334495368,1723168241010,-1174.37,0.00024398,5]
[334495369,1723168241020,-3349.24,0.00024398,5]
[334495370,1723168241029,-500.0,0.00024399,5]
[334495371,1723168241039,-500.0,0.00024399,5]
[334495372,1723168241048,-500.0,0.00024399,5]
[334495373,1723168241058,-500.0,0.00024399,5]
[334495374,1723168241067,-1979.2,0.00024399,5]
[334495375,1723168241077,-500.0,0.00024399,5]
[334495377,1723168241087,-500.0,0.00024399,5]
[334495378,1723168241096,-500.0,0.00024399,5]
[334495379,1723168241105,-4511.67,0.00024399,5]
[334495380,1723168241115,-4250.47,0.00024399,5]
[334495381,1723168241124,-500.0,0.00024399,5]
[334495382,1723168241134,-500.0,0.00024399,5]
[334495383,1723168241143,-2104.83,0.00024399,5]
[334495384,1723168241153,-1469.63,0.00024399,5]
[334495385,1723168241162,-500.0,0.00024399,5]
[334495386,1723168241172,-500.0,0.00024399,5]
[334495387,1723168241181,-4372.09,0.00024399,5]
[334495388,1723168241190,-500.0,0.00024399,5]
[334495389,1723168241200,-6578.06,0.00024399,5]
[334495390,1723168241209,-500.0,0.00024399,5]
[334495391,1723168241219,-2149.3,0.00024399,5]
[334495392,1723168241228,-500.0,0.00024399,5]
[334495393,1723168241240,-500.0,0.00024399,5]
[334495394,1723168241250,-20000.0,0.00024399,2]
[334495395,1723168241259,-1401.61,0.00024399,5]
[334495396,1723168241269,-500.0,0.00024399,5]
[334495397,1723168241278,-1597.5,0.00024399,5]
[334495398,1723168241288,-500.0,0.00024399,5]
[334495399,1723168241297,-2498.61,0.00024399,5]
[334495400,1723168241307,-500.0,0.00024399,5]
[334495401,1723168241316,-3432.13,0.00024399,5]
[334495402,1723168241325,-500.0,0.00024399,5]
[334495403,1723168241335,-5984.99,0.00024399,5]
[334495404,1723168241344,-500.0,0.00024399,5]
[334495405,1723168241353,-2482.22,0.00024399,5]
[334495406,1723168241362,-500.0,0.00024399,5]
[334495407,1723168241372,-500.0,0.00024399,5]
[334495408,1723168241381,-307.62184857,0.00024399,5]
[334495409,1723168241390,-1144.41,0.00024399,5]
[334495410,1723168241400,-500.0,0.00024399,5]
[334495411,1723168241409,-1388.2,0.00024399,5]
[334495412,1723168241419,-500.0,0.00024399,5]
[334495413,1723168241428,-500.0,0.00024399,5]
[334495414,1723168241438,-500.0,0.00024399,5]
[334495415,1723168241447,-500.0,0.00024399,5]
[334495416,1723168241457,-500.0,0.00024399,5]
[334495417,1723168241467,-500.0,0.00024399,5]
[334495418,1723168241476,-500.0,0.00024399,5]
[334495419,1723168241487,-500.0,0.00024399,5]
[334495420,1723168241496,-2489.02,0.00024399,5]
[334495421,1723168241505,-3071.63,0.00024399,5]
[334495422,1723168241513,-500.0,0.00024399,5]
[334495423,1723168241523,-500.0,0.00024399,5]
[334495424,1723168241532,-500.0,0.00024399,5]
[334495425,1723168241541,-500.0,0.00024399,5]
[334495426,1723168241551,-500.0,0.00024399,5]
[334495427,1723168241561,-500.0,0.00024399,5]
[334495428,1723168241570,-500.0,0.00024399,5]
[334495429,1723168241580,-500.0,0.00024399,5]
[334495430,1723168241589,-1081.69,0.00024399,5]
[334495431,1723168241599,-500.0,0.00024399,5]
[334495432,1723168241608,-500.0,0.00024399,5]
[334495433,1723168241618,-500.0,0.00024399,5]
[334495434,1723168241631,-500.0,0.00024399,5]
[334495435,1723168241641,-500.0,0.00024399,5]
[334495436,1723168241650,-158.66884681,0.00024399,5]
[334495437,1723168241771,-500.0,0.00024399,5]
[334495438,1723168241781,-500.0,0.00024399,5]
[334495439,1723168241791,-180.55499264,0.00024399,5]
[334495440,1723168241801,-500.0,0.00024399,5]
[334495441,1723168241811,-500.0,0.00024399,5]
[334495442,1723168241820,-500.0,0.00024399,5]
[334495443,1723168241829,-500.0,0.00024399,5]
[334495444,1723168241839,-500.0,0.00024399,5]
[334495445,1723168241848,-500.0,0.00024399,5]
[334495446,1723168241858,-500.0,0.00024399,5]
[334495447,1723168241868,-500.0,0.00024399,5]
[334495448,1723168241878,-500.0,0.00024399,5]
[334495449,1723168241889,-500.0,0.00024399,5]
[334495450,1723168241899,-500.0,0.00024399,5]
[334495451,1723168241908,-500.0,0.00024399,5]
[334495452,1723168241918,-500.0,0.00024399,5]
[334495453,1723168241927,-500.0,0.00024399,5]
[334495454,1723168241937,-500.0,0.00024399,5]
[334495455,1723168241947,-670.11,0.00024399,5]
[334495456,1723168241956,-500.0,0.00024399,5]
[334495457,1723168241966,-500.0,0.00024399,5]
[334495458,1723168241976,-500.0,0.00024399,5]
[334495459,1723168241986,-500.0,0.00024399,5]
[334495460,1723168241998,-500.0,0.00024399,5]
[334495461,1723168242014,-500.0,0.00024399,5]
[334495462,1723168242023,-500.0,0.00024399,5]
[334495463,1723168242032,-500.0,0.00024399,5]
[334495464,1723168242042,-1001.37,0.00024399,5]
[334495465,1723168242051,-728.65,0.00024399,5]
[334495466,1723168242061,-500.0,0.00024399,5]
[334495467,1723168242071,-500.0,0.00024399,5]
[334495468,1723168242080,-1036.16,0.00024399,5]
[334495469,1723168242089,-500.0,0.00024399,5]
[334495470,1723168242098,-500.0,0.00024399,5]